Cogmind - Beta 9.3 @@@ ROGUE MODE // 2019.12.31 @ 08:56:48 Player: mrbill82 Result: Destroyed by G-34 Mercenary with Small Laser Performance ------------- Evolutions (0) 0 Regions Visited (1) 200 Robots Destroyed (20) 100 Value Destroyed (562) 562 Prototype IDs (0) 0 Alien Tech Used (0) 0 Bonus (0) 0 TOTAL SCORE: 862 Bonus ------- None Cogmind --------- Core Integrity 0/250 Matter 235/300 Energy 100/100 System Corruption 0% Temperature Cool (6) Movement Core (100) Ox1 Location -10/Materials Parts ------- > --- POWER (1) -------- (None) > --- PROPULSION (2) --- (None) > --- UTILITY (2) ------ Small Storage Unit > --- WEAPON (2) ------- EM Pulse Gun > --- INVENTORY (6) ---- Aluminum Leg Assault Rifle Assault Rifle Peak State ------------ > --- POWER ------------ Ion Engine > --- PROPULSION ------- Aluminum Leg Aluminum Leg > --- UTILITY ---------- Improved Heat Sink Small Storage Unit > --- WEAPON ----------- EM Pulse Gun Medium Laser > --- INVENTORY -------- Ion Engine Heat Sink Small Laser [Rating: 9] Favorites ----------- Power Ion Engine Engine Ion Engine Propulsion Aluminum Leg Leg Aluminum Leg Utility Small Storage Unit Device Improved Heat Sink Storage Small Storage Unit Weapon EM Pulse Gun Energy Gun EM Pulse Gun Ballistic Gun Light Assault Rifle Build | -11 -10 ------- Run | Scr Mat Slots Evolved . | . . Power . | . . Propulsion . | . . Utility . | . . Weapon . | . . Parts Attached 29 | 7 22 Power 4 | 1 3 Engine 4 | 1 3 Core . | . . Reactor . | . . Propulsion 8 | 2 6 Treads . | . . Leg 8 | 2 6 Wheel . | . . Hover . | . . Flight . | . . Utility 6 | 1 5 Device 5 | . 5 Storage 1 | 1 . Processor . | . . Hackware . | . . Protection . | . . Artifact . | . . Weapon 11 | 3 8 Energy Gun 10 | 3 7 Energy Cannon . | . . Ballistic Gun 1 | . 1 Ballistic Cannon . | . . Launcher . | . . Special Weapon . | . . Impact Weapon . | . . Slashing Weapon . | . . Piercing Weapon . | . . Special Melee Weapon . | . . Unidentified Prototypes . | . . Parts Lost 9 | . 9 Power 1 | . 1 Propulsion 4 | . 4 Utility 1 | . 1 Weapon 3 | . 3 Highest Loss Streak 5 | . 5 Average Slot Usage (%) 91 | . 91 Engine 13 | . 13 Leg 25 | . 25 Device 13 | . 13 Storage 14 | . 14 Energy Gun 21 | . 21 Ballistic Gun 2 | . 2 Naked Turns . | . . Heaviest Build 15 | 11 15 Greatest Support 20 | 20 20 Greatest Overweight (x) 3 | . 3 Average Overweight (x) . | . . Largest Inventory Capacity 6 | 6 6 Average Capacity 5 | 5 6 Most Carried 6 | 3 6 Average Carried 2 | 1 2 Final Capacity 6 | 6 6 Final Carried 3 | 2 3 Class Distribution -------------------- 59% | Scavenger-Mutant 40% | Mutant Dominant Class ---------------- Scavenger-Mutant | -10/Materials Resources | -11 -10 ----------- Run | Scr Mat Matter Collected 358 | 84 274 Remotely . | . . Salvage Created 711 | . 711 Parts 44 | . 44 Haulers Intercepted . | . . Recyclers Shooed 1 | . 1 Parts Field Recycled . | . . Retrieved Matter . | . . Parts Self-Destructed . | . . Prevented . | . . Kills | -11 -10 ------- Run | Scr Mat Combat Hostiles Destroyed 16 | . 16 Melee 2 | . 2 Guns 12 | . 12 AOE 2 | . 2 Classes Destroyed 4 | . 4 Operator 1 | . 1 Watcher 3 | . 3 Swarmer 3 | . 3 Grunt 13 | . 13 Best Kill Streak 3 | . 3 Combat Bots Only 3 | . 3 Max Kills in Single Turn 2 | . 2 Gunslinging . | . . Exploded 2 | . 2 Melee 1 | . 1 Uniques/NPCs Destroyed . | . . Combat | -11 -10 -------- Run | Scr Mat Damage Taken 1113 | . 1113 Core 253 | . 253 Absorbed by Shields . | . . Core Remaining (%) 100 | 100 . Volleys Fired 53 | . 53 Largest 2 | . 2 Hottest 105 | . 105 Shots Fired 88 | . 88 Gun 88 | . 88 Cannon . | . . Launcher . | . . Special . | . . Kinetic 17 | . 17 Thermal 13 | . 13 Explosive . | . . Electromagnetic 58 | . 58 Robot Hit Streak 11 | . 11 Robot Miss Streak 6 | . 6 Penetration Max . | . . Secondary Targets 1 | . 1 Max Gunslinging Chain 1 | . 1 Shots Hit Robots 57 | . 57 Core Hits 37 | . 37 Critical Hits . | . . Critical Kills . | . . Critical Parts Destroyed . | . . Melee Attacks . | . . Impact . | . . Slashing . | . . Piercing . | . . Sneak Attacks . | . . Combat Hostiles . | . . Follow-up Attacks . | . . Damage Inflicted 917 | . 917 Guns 822 | . 822 Cannons . | . . Explosions 65 | . 65 Melee . | . . Ramming 30 | . 30 Kinetic 137 | . 137 Thermal 200 | . 200 Explosive . | . . Electromagnetic 550 | . 550 Impact . | . . Slashing . | . . Piercing . | . . Highest Corruption . | . . Average Corruption . | . . Corruption Purged . | . . Overload Shots . | . . Overflow Damage . | . . Projectiles . | . . Explosions . | . . Melee . | . . Knockbacks . | . . Impact . | . . Kinetic . | . . Secondary . | . . Self-Inflicted Damage 39 | . 39 Shots 1 | . 1 Rammed 10 | . 10 Targets Rammed 15 | . 15 Kicked 5 | . 5 Crushed . | . . Highest Temperature 204 | . 204 Average Temperature 70 | . 70 Received Heat Transfer 453 | . 453 Siege Activations . | . . Robots Corrupted . | . . Combat Hostiles . | . . Parts Fried 5 | . 5 Impact Corruptions . | . . Robots Melted . | . . Combat Hostiles . | . . Parts Melted . | . . Heat Transferred 483 | . 483 Parts Sabotaged . | . . Parts Stolen . | . . Parts Stripped . | . . Power Chain Reactions 1 | . 1 Missiles Intercepted . | . . Alert | -11 -10 ------- Run | Scr Mat Peak Influence 204 | . 204 Average Influence 97 | . 102 Maximum Alert Level 1 | . 1 Low Security (%) 99 | 100 99 Level 1 . | . . Level 2 . | . . Level 3 . | . . Level 4 . | . . Level 5 . | . . High Security . | . . Max Security . | . . Squads Dispatched 6 | . 6 Investigation 2 | . 2 Extermination . | . . Reinforcement 4 | . 4 Assault . | . . Garrison . | . . Intercept . | . . Construction Impeded . | . . Haulers Reinforced . | . . Stealth | -11 -10 --------- Run | Scr Mat Distress Signals 1 | . 1 Communications Jammed . | . . Distress Signals . | . . Times Spotted 32 | . 32 Peak Tracking Total 3 | . 3 Tactical Retreats 1 | . 1 Traps | -11 -10 ------- Run | Scr Mat Traps Triggered 3 | . 3 Indirectly . | . . Trap Hack Attempts . | . . Triggered . | . . Disarmed . | . . Reprogrammed . | . . Reused . | . . Traps Extracted . | . . Installed . | . . Triggered . | . . Machines | -11 -10 ---------- Run | Scr Mat Machines Disabled . | . . Max in Single Turn . | . . Machines Sabotaged . | . . Garrisons Compromised . | . . Overloaded Fab Kills . | . . Fab Network Shutdowns . | . . Hacking | -11 -10 --------- Run | Scr Mat Machines Accessed 5 | . 5 Terminals 4 | . 4 Fabricators . | . . Repair Stations . | . . Recycling Units 1 | . 1 Scanalyzers . | . . Garrison Access . | . . Total Hacks 16 | . 16 Successful 14 | . 14 Failed 2 | . 2 Catastrophic . | . . Database Lockouts . | . . Manual . | . . Terminals 9 | . 9 Fabricators . | . . Repair Stations . | . . Recycling Units 7 | . 7 Scanalyzers . | . . Garrison Access . | . . Terminal Hacks 8 | . 8 Record 4 | . 4 Robot Analysis 1 | . 1 Emergency Access Points 1 | . 1 Dispatch Records 1 | . 1 Zone Layout 1 | . 1 Fabricator Hacks . | . . Repair Station Hacks . | . . Recycling Unit Hacks 6 | . 6 Recycle Component 2 | . 2 Process 2 | . 2 Report Inventory 1 | . 1 Retrieve Components 1 | . 1 Scanalyzer . | . . Garrison Access Hacks . | . . Unauthorized Hacks . | . . Terminals . | . . Fabricators . | . . Repair Stations . | . . Recycling Units . | . . Scanalyzers . | . . Garrison Access . | . . Data Cores Recovered . | . . Used . | . . Hacking Detections 4 | . 4 Full Trace Events 1 | . 1 Feedback Events . | . . Feedback Blocked . | . . Robot Schematics Acquired . | . . Robots Built . | . . Matter . | . . Time . | . . Total Robot Build Rating . | . . Part Schematics Acquired . | . . Parts Built . | . . Matter . | . . Time . | . . Total Part Build Rating . | . . Parts Repaired . | . . Time . | . . Parts Recycled 2 | . 2 Recycled Matter 2 | . 2 Retrieved Matter . | . . Retrieved Components . | . . Parts Scanalyzed . | . . Part Schematics Acquired . | . . Parts Damaged . | . . Bothacking | -11 -10 ------------ Run | Scr Mat Used RIF Installer . | . . Robots Hacked . | . . Non-combat . | . . Combat . | . . Robot Hacks Applied . | . . Relay Couplers Released . | . . Robots Rewired . | . . Allies Hacked . | . . Hacks Repelled . | . . Allies | -11 -10 -------- Run | Scr Mat Total Allies . | . . Largest Group . | . . Highest-Rated Group . | . . Highest-Rated Ally . | . . Total Orders . | . . Ally Attacks . | . . Total Damage . | . . Kills . | . . Allies Corrupted . | . . Allies Melted . | . . Intel | -11 -10 ------- Run | Scr Mat Robot Analysis Total 1 | . 1 Derelict Logs Recovered . | . . Drone Launches . | . . Drone Recoveries . | . . Exploration | -11 -10 ------------- Run | Scr Mat Turns Passed 1369 | 62 1307 Spaces Moved 921 | 47 874 Core 32 | 9 23 Treads . | . . Legs 889 | 38 851 Wheels . | . . Hover . | . . Flight . | . . Fastest Speed 50 | 50 100 Average Speed 120 | 106 121 Slowest Speed 200 | 120 200 Overloaded Moves . | . . Propulsion Burnouts . | . . Robots Hopped . | . . Cave-ins Triggered . | . . Exploration Rate (%) 43 | 4 83 Regions Visited 1 Branch Regions . Pre-discovered Areas . | . . Known Exits Taken . | . . Unknown Exits Taken 1 | 1 . Scrap Searched . | . . Spaces Dug . | . . Terrain Destroyed 4 | . 4 Melee . | . . Projectile . | . . AOE 4 | . 4 Actions | -11 -10 --------- Run | Scr Mat Total 1084 | 56 1028 Wait 44 | . 44 Move 920 | 46 874 Hop . | . . Pick Up 9 | 2 7 Fast Attach 19 | 6 13 Attach 6 | 1 5 Detach 6 | 1 5 Swap 4 | . 4 Drop 8 | . 8 Fire 53 | . 53 Melee . | . . Ram . | . . Kick 15 | . 15 Crush . | . . Escape Stasis . | . . Rewire . | . . Trap . | . . Miscellaneous . | . . Route ------- -11/Scrapyard -10/Materials (discovered 4 exits: [*Mat x2] / [*Min x2]) History --------- Turn | Location | Event 4 | -11/Scrapyard | Discovered new exit (range 15) 63 | -11/Scrapyard | Entered Materials 309 | -10/Materials | Build established: Mutant 473 | -10/Materials | Core integrity fell below 50% 748 | -10/Materials | Discovered new exit (range 6) 822 | -10/Materials | Build established: Scavenger-Mutant 1003 | -10/Materials | Discovered new exit (range 16) 1104 | -10/Materials | Discovered new exit (range 16) 1199 | -10/Materials | Discovered new exit (range 7) 1320 | -10/Materials | Core integrity fell below 20% 1370 | -10/Materials | Destroyed by G-34 Mercenary with Small Laser Last Messages --------------- >>Query(Mines) Deep underground areas newly excavated to provide access to raw materials for processing in the lower levels of [Complex 0b10]. Initially the mining tunnels only rarely experienced hostile [Derelict] activity, not enough to justify allocating significant resources to defense. This has recently changed with the [Infestation], for which the current response is to dispatch garrisoned Demolishers until a more permanent solution can be put in place. Ion Engine destroyed. G-34 Mercenary destroyed. R-06 Scavenger collects Aluminum Leg. R-06 Scavenger collects Ion Engine. G-34 Mercenary IFF system glitched. Aluminum Leg destroyed. EM Pulse Gun destroyed. G-34 Mercenary misfires. Imp. Heat Sink destroyed. K-01 Serf collects debris. Aluminum Leg destroyed. G-34 Mercenary IFF system glitched. Map ----- +----------------------------------------------------+ | !!##????????? | | ################## !#????????? | | ?????????????????# !#????????? | | ?????????????????# !#????????? | | ?????????????????+^^ !#????????? | | ?????????????????# ^ !!##????????? | | ??????########### ####?????????? | | ???# #???????????? | | ?# #???????????? | | + "T" ##??????????? | | ? # """"" "#??????????? | | ?? # """"" T#??????????? | | ??? # """"" [ "#??????????? | | ???? # """"" [ ##??????????? | | # """"" [[ #???????????? | | ####### """"" #???????????? | | ??????# """"" #######?????? | | #######! # #?????? | | #?????? | | #?????? | | #?????? | | ####### ########### #?????? | | ??????#######?????????## #######? | | ####???????????????????# # T # | | #######?????????????# + # | | # #?????????????# @k#""" # | | " # #????????####?# #""" # | | " %# / #????????# ?# g #""" # | | " =+ #????????# ?#% # # | | # "T" #????????# ?# ######## | | +### """ #????????# ?# #??????? | | #?# #????????# ?# #??????? | | #####+############ ?#u #??????? | | % #??# # ?# #??????? | | ###### #??# # ?+ +??????? | | #?# #??# # ?# #??????? | | #?# #??# """"" ####?# #??????? | | ###+#### """"" # ? #??????? | | # ## """"" + ? #??????? | | # ## # ? #??????? | | ## """ ## """"" ###+?# ???????? | | ## """ ## """"" ## ?? ???????? | | ## """ ## """"" ## ????????????? | | ## ## ## ????????????? | | ## ! ########### ????????????? | | ########????????????????????????? | | #???????????????????????????????? | | #???????????????????????????????? | | #???????????????????????????????? | | #???????????????????????????????? | +----------------------------------------------------+ Best States ------------- Heat Dissipation 39 Energy Generation 10 Energy Capacity 250 Matter Stores 300 Matter Capacity 300 Sight Range 16 Terrain Scan Density 10 Evasion (%) 40 Item Schematics ----------------- None Robot Schematics ------------------ None Fabricated ------------ Nothing Alien Tech Used ----------------- None Achievements -------------- None Challenges ------------ None Game ------ Seed SwordMetafiberBooster Manual? 0 Play Time 00:13:10 Cumulative 4.2 hours Start 2019.12.31 @ 00:11:58 End 2019.12.31 @ 08:56:48 Sessions 3 Manual Loads 0 Difficulty Rogue Special Mode None Game No. 10 Rogue 10 Adventurer 0 Explorer 0 Win Type - Total 0 Types 0/0/0/0/0/0/0 Lore% 12 Gallery% 7 Achievement% 6 Wizard Run 0 Options --------- ASCII 0 Keyboard 1 Movement Numpad Keybinds 0 Fullscreen 2 Font 18/X11 Map View 76x50 Tactical HUD 0 Map Filters NONE Filters NONE Steam 1 RUN: 019a24a5-bf46-4e08-b10e-c8834ce61551